{"text_format":"1","workbook":"xlsx","n_sheets":7,"sheets":["VektKtrLodd","SD_KtrLodd","Oppsett","Oversikt","Lodd1","Lodd2","Lodd3"],"not_rendered":{"charts":3,"images":0,"macros":1,"external_links":0,"defined_names":7,"comments":0,"pivot_tables":0},"unopened":[],"bounds":{"document_bytes":16777216,"sheet_cells":100000,"rows_first":2000,"rows_last":500,"rows_between":2000,"halvings":0,"cell_chars":16384,"cell_head_chars":4096},"cells_cut":0,"cells_raw":0,"read":"whole","date_system":"1900"}

{"sheet":"VektKtrLodd","index":0,"n_rows":25,"n_cols":4,"rows_kept":25,"cut":false,"hidden":false,"merged":[[8,0,9,0],[8,1,8,3]]}
["EQSDocument 35100 v. 1.1"]
["Bestemmelse av vekten (konvensjonell masse) til kontroll-lodd"]
["Instrumentnr:"]
["Kalibrert (dato):"]
[]
["Utførelse (Dato):"]
["Signatur:"]
[]
["Kjøring","Lodd (Nivå)"]
[null,"0,02 g","1 g","100 g"]
[1]
[2]
[3]
[4]
[5]
[6]
[7]
[8]
[9]
[10]
["Gj.snitt",{"$f":"AVERAGE(B11:B20)","v":{"$error":"#DIV/0!"}},{"$f":"AVERAGE(C11:C20)","v":{"$error":"#DIV/0!"}},{"$f":"AVERAGE(D11:D20)","v":{"$error":"#DIV/0!"}}]
["SDInnenDag",{"$f":"_xlfn.STDEV.S(B11:B20)","v":{"$error":"#DIV/0!"}},{"$f":"_xlfn.STDEV.S(C11:C20)","v":{"$error":"#DIV/0!"}},{"$f":"_xlfn.STDEV.S(D11:D20)","v":{"$error":"#DIV/0!"}}]
["CV %",{"$f":"B22*100/B21","v":{"$error":"#DIV/0!"}},{"$f":"C22*100/C21","v":{"$error":"#DIV/0!"}},{"$f":"D22*100/D21","v":{"$error":"#DIV/0!"}}]
["Max",{"$f":"MAX(B11:B20)","v":0},{"$f":"MAX(C11:C20)","v":0},{"$f":"MAX(D11:D20)","v":0}]
["Min",{"$f":"MIN(B11:B20)","v":0},{"$f":"MIN(C11:C20)","v":0},{"$f":"MIN(D11:D20)","v":0}]

{"sheet":"SD_KtrLodd","index":1,"n_rows":37,"n_cols":6,"rows_kept":37,"cut":false,"hidden":false,"merged":[[8,1,8,3],[8,0,9,0]]}
[{"$f":"VektKtrLodd!A1","v":"EQSDocument 35100 v. 1.1"}]
["Bestemmelse av standardavvik til aktuell lodd"]
["Instrumentnr:",{"$f":"VektKtrLodd!B3","v":0}]
[]
[]
[]
[]
[]
["Dato","Lodd (Nivå)"]
[null,{"$f":"VektKtrLodd!B10","v":"0,02 g"},{"$f":"VektKtrLodd!C10","v":"1 g"},{"$f":"VektKtrLodd!D10","v":"100 g"},"Signatur","Kjøring"]
[null,null,null,null,null,1]
[null,null,null,null,null,2]
[null,null,null,null,null,3]
[null,null,null,null,null,4]
[null,null,null,null,null,5]
[null,null,null,null,null,6]
[null,null,null,null,null,7]
[null,null,null,null,null,8]
[null,null,null,null,null,9]
[null,null,null,null,null,10]
[null,null,null,null,null,11]
[null,null,null,null,null,12]
[null,null,null,null,null,13]
[null,null,null,null,null,14]
[null,null,null,null,null,15]
[null,null,null,null,null,16]
[null,null,null,null,null,17]
[null,null,null,null,null,18]
[null,null,null,null,null,19]
[null,null,null,null,null,20]
["Gj.snitt",{"$f":"ROUND(AVERAGE(B11:B30),5)","v":{"$error":"#DIV/0!"}},{"$f":"AVERAGE(C11:C30)","v":{"$error":"#DIV/0!"}},{"$f":"AVERAGE(D11:D30)","v":{"$error":"#DIV/0!"}}]
["SDMellomDag",{"$f":"_xlfn.STDEV.S(B11:B30)","v":{"$error":"#DIV/0!"}},{"$f":"_xlfn.STDEV.S(C11:C30)","v":{"$error":"#DIV/0!"}},{"$error":"#DIV/0!"}]
["CV %",{"$f":"B32*100/B31","v":{"$error":"#DIV/0!"}},{"$f":"C32*100/C31","v":{"$error":"#DIV/0!"}},{"$f":"D32*100/D31","v":{"$error":"#DIV/0!"}}]
["Max",{"$f":"MAX(B11:B30)","v":0},{"$f":"MAX(C11:C30)","v":0},0]
["Min",{"$f":"MIN(B11:B30)","v":0},{"$f":"MIN(C11:C30)","v":0},0]
["Min",{"$f":"MIN(B12:B31)","v":{"$error":"#DIV/0!"}},{"$error":"#DIV/0!"},{"$error":"#DIV/0!"}]
["InnveidVektKtrLodd",{"$f":"VektKtrLodd!B21","v":{"$error":"#DIV/0!"}},{"$f":"VektKtrLodd!C21","v":{"$error":"#DIV/0!"}},{"$f":"VektKtrLodd!D21","v":{"$error":"#DIV/0!"}}]

{"sheet":"Oppsett","index":2,"n_rows":12,"n_cols":5,"rows_kept":12,"cut":false,"hidden":false,"merged":[[2,1,2,3],[4,3,5,3],[1,1,1,3]]}
[{"$f":"VektKtrLodd!A1","v":"EQSDocument 35100 v. 1.1"}]
[null,"Vekt, Instrumentnr:"]
[null,{"$f":"VektKtrLodd!B3","v":0}]
[]
[]
[]
[]
[]
[null,null,"Innveid vekt på lodd (g)","Aksjonsgrense ±3 sd","Alarmgrense ±2 sd"]
[null,"Lodd 1",{"$f":"ROUND(VektKtrLodd!B21,4)","v":{"$error":"#DIV/0!"}},{"$f":"ROUNDUP(SD_KtrLodd!B32,4)*3","v":{"$error":"#DIV/0!"}},{"$f":"ROUNDUP(SD_KtrLodd!B32,4)*2","v":{"$error":"#DIV/0!"}}]
[null,"Lodd 2",{"$f":"ROUND(VektKtrLodd!C21,4)","v":{"$error":"#DIV/0!"}},{"$f":"ROUNDUP(SD_KtrLodd!C32,4)*3","v":{"$error":"#DIV/0!"}},{"$f":"ROUNDUP(SD_KtrLodd!C32,4)*2","v":{"$error":"#DIV/0!"}}]
[null,"Lodd 3",{"$f":"ROUND(VektKtrLodd!D21,4)","v":{"$error":"#DIV/0!"}},{"$f":"ROUNDUP(SD_KtrLodd!D32,4)*3","v":{"$error":"#DIV/0!"}},{"$f":"ROUNDUP(SD_KtrLodd!D32,4)*2","v":{"$error":"#DIV/0!"}}]

{"sheet":"Oversikt","index":3,"n_rows":14,"n_cols":6,"rows_kept":14,"cut":false,"hidden":false,"merged":[[8,2,8,5],[8,7,8,10]]}
[{"$f":"VektKtrLodd!A1","v":"EQSDocument 35100 v. 1.1"}]
[null,null,"Dato:",null,"Fylles ut kun hvis IKKE dagens dato (dd.mm.åå)"]
[null,null,"Sign:",null,"Hvis ikke utfylt, benyttes pålogget brukers brukernavn"]
[]
[]
[null,null,"Utføres ukentlig"]
[]
[null,null,"Sist utført:","2025-12-04"]
[null,null,"Kontroll av vekt med lodd"]
[null,null,{"$f":"Oppsett!B2","v":"Vekt, Instrumentnr:"},null,null,"Målt vekt (g)"]
[null,null,{"$f":"VektKtrLodd!B3","v":0}]
[null,null,"Lodd:",true,false,false]
[]
[null,null,"Merknad"]

{"sheet":"Lodd1","index":4,"n_rows":202,"n_cols":18,"rows_kept":202,"cut":false,"hidden":false,"merged":[[5,1,5,3],[0,0,0,3],[1,1,1,3],[2,1,2,3],[3,1,3,3],[4,1,4,3]]}
[{"$f":"Oppsett!B10","v":"Lodd 1"}]
[null,{"$f":"SD_KtrLodd!B10","v":"0,02 g"},null,null,{"$f":"VektKtrLodd!A1","v":"EQSDocument 35100 v. 1.1"}]
["Antall",{"$f":"COUNT( C8:C202)","v":0}]
["Mean",{"$f":"AVERAGE(C8:C202)","v":{"$error":"#DIV/0!"}}]
["Standardavvik",{"$f":"STDEV(C8:C202)","v":{"$error":"#DIV/0!"}}]
["CV",{"$f":"B5*100/B4","v":{"$error":"#DIV/0!"}},null,null,null,null,null,null,null,null,null,null,null,null,"Stopp",null,"Vurder"]
["Dato",null,"Vekt lodd","Vurdering","Sign","Merknad","Uke",null,null,null,null,null,null,null,"Lav","Høy","Lav","Høy"]
[null,null,null,{"$f":"IF(C8<>\"\",IF((OR((C8>$R8),(C8<$Q8))),IF(OR((C8>$P8),(C8<$O8)),\"STOPP\",\"Vurder\"),\"Ok\"),\"\")","v":""}]
[null,null,null,{"$f":"IF(C9<>\"\",IF((OR((C9>$R9),(C9<$Q9))),IF(OR((C9>$P9),(C9<$O9)),\"STOPP\",\"Vurder\"),\"Ok\"),\"\")","v":""}]
[null,null,null,{"$f":"IF(C10<>\"\",IF((OR((C10>$R10),(C10<$Q10))),IF(OR((C10>$P10),(C10<$O10)),\"STOPP\",\"Vurder\"),\"Ok\"),\"\")","v":""}]
[null,null,null,""]
[null,null,null,""]
[null,null,null,""]
[null,null,null,""]
[null,null,null,""]
[null,null,null,""]
[null,null,null,""]
[null,null,null,""]
[null,null,null,""]
[null,null,null,""]
[null,null,null,""]
[null,null,null,""]
[null,null,null,""]
[null,null,null,""]
[null,null,null,""]
[null,null,null,""]
[null,null,null,""]
[null,null,null,""]
[null,null,null,""]
[null,null,null,""]
[null,null,null,""]
[null,null,null,""]
[null,null,null,""]
[null,null,null,""]
[null,null,null,""]
[null,null,null,""]
[null,null,null,""]
[null,null,null,""]
[null,null,null,""]
[null,null,null,""]
[null,null,null,""]
[null,null,null,""]
[null,null,null,""]
[null,null,null,""]
[null,null,null,""]
[null,null,null,""]
[null,null,null,""]
[null,null,null,""]
[null,null,null,""]
[null,null,null,""]
[null,null,null,""]
[null,null,null,""]
[null,null,null,""]
[null,null,null,""]
[null,null,null,""]
[null,null,null,""]
[null,null,null,""]
[null,null,null,""]
[null,null,null,""]
[null,null,null,""]
[null,null,null,""]
[null,null,null,""]
[null,null,null,""]
[null,null,null,""]
[null,null,null,""]
[null,null,null,""]
[null,null,null,""]
[null,null,null,""]
[null,null,null,""]
[null,null,null,""]
[null,null,null,""]
[null,null,null,{"$f":"IF(C72<>\"\",IF((OR((C72>$R72),(C72<$Q72))),IF(OR((C72>$P72),(C72<$O72)),\"STOPP\",\"Vurder\"),\"Ok\"),\"\")","v":""}]
[null,null,null,""]
[null,null,null,""]
[null,null,null,""]
[null,null,null,""]
[null,null,null,""]
[null,null,null,""]
[null,null,null,""]
[null,null,null,""]
[null,null,null,""]
[null,null,null,""]
[null,null,null,""]
[null,null,null,""]
[null,null,null,""]
[null,null,null,""]
[null,null,null,""]
[null,null,null,""]
[null,null,null,""]
[null,null,null,""]
[null,null,null,""]
[null,null,null,""]
[null,null,null,""]
[null,null,null,""]
[null,null,null,""]
[null,null,null,""]
[null,null,null,""]
[null,null,null,""]
[null,null,null,""]
[null,null,null,""]
[null,null,null,""]
[null,null,null,""]
[null,null,null,""]
[null,null,null,""]
[null,null,null,""]
[null,null,null,""]
[null,null,null,""]
[null,null,null,""]
[null,null,null,""]
[null,null,null,""]
[null,null,null,""]
[null,null,null,""]
[null,null,null,""]
[null,null,null,""]
[null,null,null,""]
[null,null,null,""]
[null,null,null,""]
[null,null,null,""]
[null,null,null,""]
[null,null,null,""]
[null,null,null,""]
[null,null,null,""]
[null,null,null,""]
[null,null,null,""]
[null,null,null,""]
[null,null,null,""]
[null,null,null,""]
[null,null,null,""]
[null,null,null,""]
[null,null,null,""]
[null,null,null,""]
[null,null,null,""]
[null,null,null,""]
[null,null,null,""]
[null,null,null,""]
[null,null,null,{"$f":"IF(C136<>\"\",IF((OR((C136>$R136),(C136<$Q136))),IF(OR((C136>$P136),(C136<$O136)),\"STOPP\",\"Vurder\"),\"Ok\"),\"\")","v":""}]
[null,null,null,""]
[null,null,null,""]
[null,null,null,""]
[null,null,null,""]
[null,null,null,""]
[null,null,null,""]
[null,null,null,""]
[null,null,null,""]
[null,null,null,""]
[null,null,null,""]
[null,null,null,""]
[null,null,null,""]
[null,null,null,""]
[null,null,null,""]
[null,null,null,""]
[null,null,null,""]
[null,null,null,""]
[null,null,null,""]
[null,null,null,""]
[null,null,null,""]
[null,null,null,""]
[null,null,null,""]
[null,null,null,""]
[null,null,null,""]
[null,null,null,""]
[null,null,null,""]
[null,null,null,""]
[null,null,null,""]
[null,null,null,""]
[null,null,null,""]
[null,null,null,""]
[null,null,null,""]
[null,null,null,""]
[null,null,null,""]
[null,null,null,""]
[null,null,null,""]
[null,null,null,""]
[null,null,null,""]
[null,null,null,""]
[null,null,null,""]
[null,null,null,""]
[null,null,null,""]
[null,null,null,""]
[null,null,null,""]
[null,null,null,""]
[null,null,null,""]
[null,null,null,""]
[null,null,null,""]
[null,null,null,""]
[null,null,null,""]
[null,null,null,""]
[null,null,null,""]
[null,null,null,""]
[null,null,null,""]
[null,null,null,""]
[null,null,null,""]
[null,null,null,""]
[null,null,null,""]
[null,null,null,""]
[null,null,null,""]
[null,null,null,""]
[null,null,null,""]
[null,null,null,""]
[null,null,null,{"$f":"IF(C200<>\"\",IF((OR((C200>$R200),(C200<$Q200))),IF(OR((C200>$P200),(C200<$O200)),\"STOPP\",\"Vurder\"),\"Ok\"),\"\")","v":""}]
[null,null,null,""]
[null,null,null,""]

{"sheet":"Lodd2","index":5,"n_rows":202,"n_cols":18,"rows_kept":202,"cut":false,"hidden":false,"merged":[[5,1,5,3],[0,0,0,3],[1,1,1,3],[2,1,2,3],[3,1,3,3],[4,1,4,3]]}
[{"$f":"Oppsett!B11","v":"Lodd 2"}]
[null,{"$f":"SD_KtrLodd!C10","v":"1 g"},null,null,{"$f":"VektKtrLodd!A1","v":"EQSDocument 35100 v. 1.1"}]
["Antall",{"$f":"COUNT( C8:C202)","v":0}]
["Mean",{"$f":"AVERAGE(C8:C202)","v":{"$error":"#DIV/0!"}}]
["Standardavvik",{"$f":"STDEV(C8:C202)","v":{"$error":"#DIV/0!"}}]
["CV",{"$f":"B5*100/B4","v":{"$error":"#DIV/0!"}},null,null,null,null,null,null,null,null,null,null,null,null,"Stopp",null,"Vurder"]
["Dato",null,"Vekt lodd","Vurdering","Sign","Merknad","Uke",null,null,null,null,null,null,null,"Lav","Høy","Lav","Høy"]
[null,null,null,{"$f":"IF(C8<>\"\",IF((OR((C8>$R8),(C8<$Q8))),IF(OR((C8>$P8),(C8<$O8)),\"STOPP\",\"Vurder\"),\"Ok\"),\"\")","v":""}]
[null,null,null,""]
[null,null,null,""]
[null,null,null,""]
[null,null,null,""]
[null,null,null,""]
[null,null,null,""]
[null,null,null,""]
[null,null,null,""]
[null,null,null,""]
[null,null,null,""]
[null,null,null,""]
[null,null,null,""]
[null,null,null,""]
[null,null,null,""]
[null,null,null,""]
[null,null,null,""]
[null,null,null,""]
[null,null,null,""]
[null,null,null,""]
[null,null,null,""]
[null,null,null,""]
[null,null,null,""]
[null,null,null,""]
[null,null,null,""]
[null,null,null,""]
[null,null,null,""]
[null,null,null,""]
[null,null,null,""]
[null,null,null,""]
[null,null,null,""]
[null,null,null,""]
[null,null,null,""]
[null,null,null,""]
[null,null,null,""]
[null,null,null,""]
[null,null,null,""]
[null,null,null,""]
[null,null,null,""]
[null,null,null,""]
[null,null,null,""]
[null,null,null,""]
[null,null,null,""]
[null,null,null,""]
[null,null,null,""]
[null,null,null,""]
[null,null,null,""]
[null,null,null,""]
[null,null,null,""]
[null,null,null,""]
[null,null,null,""]
[null,null,null,""]
[null,null,null,""]
[null,null,null,""]
[null,null,null,""]
[null,null,null,""]
[null,null,null,""]
[null,null,null,""]
[null,null,null,""]
[null,null,null,""]
[null,null,null,""]
[null,null,null,""]
[null,null,null,""]
[null,null,null,""]
[null,null,null,{"$f":"IF(C72<>\"\",IF((OR((C72>$R72),(C72<$Q72))),IF(OR((C72>$P72),(C72<$O72)),\"STOPP\",\"Vurder\"),\"Ok\"),\"\")","v":""}]
[null,null,null,""]
[null,null,null,""]
[null,null,null,""]
[null,null,null,""]
[null,null,null,""]
[null,null,null,""]
[null,null,null,""]
[null,null,null,""]
[null,null,null,""]
[null,null,null,""]
[null,null,null,""]
[null,null,null,""]
[null,null,null,""]
[null,null,null,""]
[null,null,null,""]
[null,null,null,""]
[null,null,null,""]
[null,null,null,""]
[null,null,null,""]
[null,null,null,""]
[null,null,null,""]
[null,null,null,""]
[null,null,null,""]
[null,null,null,""]
[null,null,null,""]
[null,null,null,""]
[null,null,null,""]
[null,null,null,""]
[null,null,null,""]
[null,null,null,""]
[null,null,null,""]
[null,null,null,""]
[null,null,null,""]
[null,null,null,""]
[null,null,null,""]
[null,null,null,""]
[null,null,null,""]
[null,null,null,""]
[null,null,null,""]
[null,null,null,""]
[null,null,null,""]
[null,null,null,""]
[null,null,null,""]
[null,null,null,""]
[null,null,null,""]
[null,null,null,""]
[null,null,null,""]
[null,null,null,""]
[null,null,null,""]
[null,null,null,""]
[null,null,null,""]
[null,null,null,""]
[null,null,null,""]
[null,null,null,""]
[null,null,null,""]
[null,null,null,""]
[null,null,null,""]
[null,null,null,""]
[null,null,null,""]
[null,null,null,""]
[null,null,null,""]
[null,null,null,""]
[null,null,null,""]
[null,null,null,{"$f":"IF(C136<>\"\",IF((OR((C136>$R136),(C136<$Q136))),IF(OR((C136>$P136),(C136<$O136)),\"STOPP\",\"Vurder\"),\"Ok\"),\"\")","v":""}]
[null,null,null,""]
[null,null,null,""]
[null,null,null,""]
[null,null,null,""]
[null,null,null,""]
[null,null,null,""]
[null,null,null,""]
[null,null,null,""]
[null,null,null,""]
[null,null,null,""]
[null,null,null,""]
[null,null,null,""]
[null,null,null,""]
[null,null,null,""]
[null,null,null,""]
[null,null,null,""]
[null,null,null,""]
[null,null,null,""]
[null,null,null,""]
[null,null,null,""]
[null,null,null,""]
[null,null,null,""]
[null,null,null,""]
[null,null,null,""]
[null,null,null,""]
[null,null,null,""]
[null,null,null,""]
[null,null,null,""]
[null,null,null,""]
[null,null,null,""]
[null,null,null,""]
[null,null,null,""]
[null,null,null,""]
[null,null,null,""]
[null,null,null,""]
[null,null,null,""]
[null,null,null,""]
[null,null,null,""]
[null,null,null,""]
[null,null,null,""]
[null,null,null,""]
[null,null,null,""]
[null,null,null,""]
[null,null,null,""]
[null,null,null,""]
[null,null,null,""]
[null,null,null,""]
[null,null,null,""]
[null,null,null,""]
[null,null,null,""]
[null,null,null,""]
[null,null,null,""]
[null,null,null,""]
[null,null,null,""]
[null,null,null,""]
[null,null,null,""]
[null,null,null,""]
[null,null,null,""]
[null,null,null,""]
[null,null,null,""]
[null,null,null,""]
[null,null,null,""]
[null,null,null,""]
[null,null,null,{"$f":"IF(C200<>\"\",IF((OR((C200>$R200),(C200<$Q200))),IF(OR((C200>$P200),(C200<$O200)),\"STOPP\",\"Vurder\"),\"Ok\"),\"\")","v":""}]
[null,null,null,""]
[null,null,null,""]

{"sheet":"Lodd3","index":6,"n_rows":202,"n_cols":18,"rows_kept":202,"cut":false,"hidden":false,"merged":[[5,1,5,3],[0,0,0,3],[1,1,1,3],[2,1,2,3],[3,1,3,3],[4,1,4,3]]}
[{"$f":"Oppsett!B12","v":"Lodd 3"}]
[null,{"$f":"SD_KtrLodd!D10","v":"100 g"},null,null,{"$f":"VektKtrLodd!A1","v":"EQSDocument 35100 v. 1.1"}]
["Antall",{"$f":"COUNT( C8:C202)","v":0}]
["Mean",{"$f":"AVERAGE(C8:C202)","v":{"$error":"#DIV/0!"}}]
["Standardavvik",{"$f":"STDEV(C8:C202)","v":{"$error":"#DIV/0!"}}]
["CV",{"$f":"B5*100/B4","v":{"$error":"#DIV/0!"}},null,null,null,null,null,null,null,null,null,null,null,null,"Stopp",null,"Vurder"]
["Dato",null,"Vekt lodd","Vurdering","Sign","Merknad","Uke",null,null,null,null,null,null,null,"Lav","Høy","Lav","Høy"]
[null,null,null,{"$f":"IF(C8<>\"\",IF((OR((C8>$R8),(C8<$Q8))),IF(OR((C8>$P8),(C8<$O8)),\"STOPP\",\"Vurder\"),\"Ok\"),\"\")","v":""}]
[null,null,null,""]
[null,null,null,""]
[null,null,null,""]
[null,null,null,""]
[null,null,null,""]
[null,null,null,""]
[null,null,null,""]
[null,null,null,""]
[null,null,null,""]
[null,null,null,""]
[null,null,null,""]
[null,null,null,""]
[null,null,null,""]
[null,null,null,""]
[null,null,null,""]
[null,null,null,""]
[null,null,null,""]
[null,null,null,""]
[null,null,null,""]
[null,null,null,""]
[null,null,null,""]
[null,null,null,""]
[null,null,null,""]
[null,null,null,""]
[null,null,null,""]
[null,null,null,""]
[null,null,null,""]
[null,null,null,""]
[null,null,null,""]
[null,null,null,""]
[null,null,null,""]
[null,null,null,""]
[null,null,null,""]
[null,null,null,""]
[null,null,null,""]
[null,null,null,""]
[null,null,null,""]
[null,null,null,""]
[null,null,null,""]
[null,null,null,""]
[null,null,null,""]
[null,null,null,""]
[null,null,null,""]
[null,null,null,""]
[null,null,null,""]
[null,null,null,""]
[null,null,null,""]
[null,null,null,""]
[null,null,null,""]
[null,null,null,""]
[null,null,null,""]
[null,null,null,""]
[null,null,null,""]
[null,null,null,""]
[null,null,null,""]
[null,null,null,""]
[null,null,null,""]
[null,null,null,""]
[null,null,null,""]
[null,null,null,""]
[null,null,null,""]
[null,null,null,""]
[null,null,null,""]
[null,null,null,{"$f":"IF(C72<>\"\",IF((OR((C72>$R72),(C72<$Q72))),IF(OR((C72>$P72),(C72<$O72)),\"STOPP\",\"Vurder\"),\"Ok\"),\"\")","v":""}]
[null,null,null,""]
[null,null,null,""]
[null,null,null,""]
[null,null,null,""]
[null,null,null,""]
[null,null,null,""]
[null,null,null,""]
[null,null,null,""]
[null,null,null,""]
[null,null,null,""]
[null,null,null,""]
[null,null,null,""]
[null,null,null,""]
[null,null,null,""]
[null,null,null,""]
[null,null,null,""]
[null,null,null,""]
[null,null,null,""]
[null,null,null,""]
[null,null,null,""]
[null,null,null,""]
[null,null,null,""]
[null,null,null,""]
[null,null,null,""]
[null,null,null,""]
[null,null,null,""]
[null,null,null,""]
[null,null,null,""]
[null,null,null,""]
[null,null,null,""]
[null,null,null,""]
[null,null,null,""]
[null,null,null,""]
[null,null,null,""]
[null,null,null,""]
[null,null,null,""]
[null,null,null,""]
[null,null,null,""]
[null,null,null,""]
[null,null,null,""]
[null,null,null,""]
[null,null,null,""]
[null,null,null,""]
[null,null,null,""]
[null,null,null,""]
[null,null,null,""]
[null,null,null,""]
[null,null,null,""]
[null,null,null,""]
[null,null,null,""]
[null,null,null,""]
[null,null,null,""]
[null,null,null,""]
[null,null,null,""]
[null,null,null,""]
[null,null,null,""]
[null,null,null,""]
[null,null,null,""]
[null,null,null,""]
[null,null,null,""]
[null,null,null,""]
[null,null,null,""]
[null,null,null,""]
[null,null,null,{"$f":"IF(C136<>\"\",IF((OR((C136>$R136),(C136<$Q136))),IF(OR((C136>$P136),(C136<$O136)),\"STOPP\",\"Vurder\"),\"Ok\"),\"\")","v":""}]
[null,null,null,""]
[null,null,null,""]
[null,null,null,""]
[null,null,null,""]
[null,null,null,""]
[null,null,null,""]
[null,null,null,""]
[null,null,null,""]
[null,null,null,""]
[null,null,null,""]
[null,null,null,""]
[null,null,null,""]
[null,null,null,""]
[null,null,null,""]
[null,null,null,""]
[null,null,null,""]
[null,null,null,""]
[null,null,null,""]
[null,null,null,""]
[null,null,null,""]
[null,null,null,""]
[null,null,null,""]
[null,null,null,""]
[null,null,null,""]
[null,null,null,""]
[null,null,null,""]
[null,null,null,""]
[null,null,null,""]
[null,null,null,""]
[null,null,null,""]
[null,null,null,""]
[null,null,null,""]
[null,null,null,""]
[null,null,null,""]
[null,null,null,""]
[null,null,null,""]
[null,null,null,""]
[null,null,null,""]
[null,null,null,""]
[null,null,null,""]
[null,null,null,""]
[null,null,null,""]
[null,null,null,""]
[null,null,null,""]
[null,null,null,""]
[null,null,null,""]
[null,null,null,""]
[null,null,null,""]
[null,null,null,""]
[null,null,null,""]
[null,null,null,""]
[null,null,null,""]
[null,null,null,""]
[null,null,null,""]
[null,null,null,""]
[null,null,null,""]
[null,null,null,""]
[null,null,null,""]
[null,null,null,""]
[null,null,null,""]
[null,null,null,""]
[null,null,null,""]
[null,null,null,""]
[null,null,null,{"$f":"IF(C200<>\"\",IF((OR((C200>$R200),(C200<$Q200))),IF(OR((C200>$P200),(C200<$O200)),\"STOPP\",\"Vurder\"),\"Ok\"),\"\")","v":""}]
[null,null,null,""]
[null,null,null,""]